[Event "Early-Titled-Tuesday-Blitz-March-19-2024"]
[Site "Chess.com"]
[Date "2024.03.19"]
[Round "9"]
[White "LuisFSiles"]
[Black "ExchangeAB"]
[Result "0-1"]
[WhiteElo "2290"]
[BlackElo "2519"]
[TimeControl "180+1"]
[EndTime "9:41:54 PDT"]
[Termination "ExchangeAB won by resignation"]

1. e4 {[%clk 0:03:00.9]} 1... c5 {[%clk 0:02:59.8]} 2. Nf3 {[%clk 0:03:00.3]}
2... d6 {[%clk 0:03:00.3]} 3. Bb5+ {[%clk 0:02:59.6]} 3... Bd7 {[%clk
0:02:56.1]} 4. Bxd7+ {[%clk 0:02:59.6]} 4... Qxd7 {[%clk 0:02:55.6]} 5. O-O
{[%clk 0:02:59.6]} 5... Nc6 {[%clk 0:02:55.5]} 6. c3 {[%clk 0:02:59.8]} 6... e6
{[%clk 0:02:50.2]} 7. d4 {[%clk 0:02:59.3]} 7... cxd4 {[%clk 0:02:50.1]} 8. cxd4
{[%clk 0:03:00.2]} 8... Nf6 {[%clk 0:02:42.4]} 9. Nc3 {[%clk 0:02:42.1]} 9... d5
{[%clk 0:02:42.2]} 10. exd5 {[%clk 0:02:14.7]} 10... Nxd5 {[%clk 0:02:40.8]} 11.
Ne4 {[%clk 0:02:11.2]} 11... Be7 {[%clk 0:02:39.5]} 12. Ne5 {[%clk 0:02:10.7]}
12... Nxe5 {[%clk 0:02:38.7]} 13. dxe5 {[%clk 0:02:10.9]} 13... O-O {[%clk
0:02:36.1]} 14. Bg5 {[%clk 0:02:10.2]} 14... Bxg5 {[%clk 0:02:32.7]} 15. Nxg5
{[%clk 0:02:11.1]} 15... h6 {[%clk 0:02:31.8]} 16. Ne4 {[%clk 0:02:10.4]} 16...
Qb5 {[%clk 0:02:23]} 17. Qb3 {[%clk 0:02:08]} 17... Qa6 {[%clk 0:02:02.7]} 18.
Rac1 {[%clk 0:01:53.1]} 18... b6 {[%clk 0:01:58.8]} 19. Nd6 {[%clk 0:01:50.3]}
19... Nf4 {[%clk 0:01:51]} 20. Rc7 {[%clk 0:01:41.8]} 20... Nd3 {[%clk
0:01:42.6]} 21. f4 {[%clk 0:01:28.3]} 21... Nc5 {[%clk 0:01:38.9]} 22. f5 {[%clk
0:01:19.6]} 22... Nxb3 {[%clk 0:01:38.5]} 0-1

[Event "Early-Titled-Tuesday-Blitz-March-19-2024"]
[Site "Chess.com"]
[Date "2024.03.19"]
[Round "9"]
[White "nikitakhoroshev"]
[Black "Casper"]
[Result "0-1"]
[WhiteElo "2655"]
[BlackElo "2507"]
[TimeControl "180+1"]
[EndTime "9:41:56 PDT"]
[Termination "Casper won by checkmate"]

1. e4 {[%clk 0:03:00.9]} 1... c5 {[%clk 0:02:59.6]} 2. Nc3 {[%clk 0:03:00.2]}
2... d6 {[%clk 0:02:59.9]} 3. f4 {[%clk 0:02:59.8]} 3... g6 {[%clk 0:02:59.8]}
4. Nf3 {[%clk 0:02:59.2]} 4... Bg7 {[%clk 0:03:00.3]} 5. a4 {[%clk 0:02:57.2]}
5... Bg4 {[%clk 0:03:00.6]} 6. Bc4 {[%clk 0:02:56.9]} 6... Nf6 {[%clk
0:03:00.2]} 7. O-O {[%clk 0:02:56.4]} 7... O-O {[%clk 0:03:00.3]} 8. h3 {[%clk
0:02:56.2]} 8... Bxf3 {[%clk 0:03:00.6]} 9. Qxf3 {[%clk 0:02:56.3]} 9... Nc6
{[%clk 0:03:01.5]} 10. d3 {[%clk 0:02:56]} 10... Nd4 {[%clk 0:03:00.1]} 11. Qf2
{[%clk 0:02:56.2]} 11... e6 {[%clk 0:03:00.5]} 12. Be3 {[%clk 0:02:44]} 12...
Rc8 {[%clk 0:02:58.2]} 13. Bxd4 {[%clk 0:02:31.1]} 13... cxd4 {[%clk 0:02:59.1]}
14. Ne2 {[%clk 0:02:21]} 14... d5 {[%clk 0:02:59.3]} 15. e5 {[%clk 0:02:15.6]}
15... dxc4 {[%clk 0:02:58.2]} 16. exf6 {[%clk 0:02:15.8]} 16... Qxf6 {[%clk
0:02:57.1]} 17. b3 {[%clk 0:02:09.8]} 17... cxd3 {[%clk 0:02:53.3]} 18. cxd3
{[%clk 0:02:10]} 18... Qf5 {[%clk 0:02:50.8]} 19. Qf3 {[%clk 0:02:07]} 19... Rc2
{[%clk 0:02:44.2]} 20. g4 {[%clk 0:02:02.9]} 20... Qa5 {[%clk 0:02:25.3]} 21.
Ng3 {[%clk 0:01:55.6]} 21... Rfc8 {[%clk 0:02:18.6]} 22. f5 {[%clk 0:01:55.8]}
22... Qd2 {[%clk 0:02:17.8]} 23. Rf2 {[%clk 0:01:53.8]} 23... Qxf2+ {[%clk
0:02:15.3]} 24. Qxf2 {[%clk 0:01:53.7]} 24... Rxf2 {[%clk 0:02:16.2]} 25. Kxf2
{[%clk 0:01:54.1]} 25... Rc3 {[%clk 0:02:13.8]} 26. f6 {[%clk 0:01:47.3]} 26...
Bxf6 {[%clk 0:02:10]} 27. Ne4 {[%clk 0:01:47.2]} 27... Bh4+ {[%clk 0:02:10.7]}
28. Kf3 {[%clk 0:01:46.8]} 28... Rxb3 {[%clk 0:02:11.6]} 29. g5 {[%clk
0:01:46.4]} 29... h6 {[%clk 0:02:02]} 30. Nf6+ {[%clk 0:01:33]} 30... Kg7 {[%clk
0:01:59.3]} 31. Ne8+ {[%clk 0:01:30.5]} 31... Kf8 {[%clk 0:01:59.7]} 32. Nd6
{[%clk 0:01:26.4]} 32... Ke7 {[%clk 0:01:59.9]} 33. Ne4 {[%clk 0:01:23.6]} 33...
Rxd3+ {[%clk 0:01:58.8]} 34. Kg4 {[%clk 0:01:23.3]} 34... hxg5 {[%clk
0:01:57.6]} 35. Rc1 {[%clk 0:01:21.7]} 35... f5# {[%clk 0:01:57.3]} 0-1

[Event "Early-Titled-Tuesday-Blitz-March-19-2024"]
[Site "Chess.com"]
[Date "2024.03.19"]
[Round "9"]
[White "ImportedItalianMaple"]
[Black "Mikhail_Bryakin"]
[Result "1-0"]
[WhiteElo "2540"]
[BlackElo "2713"]
[TimeControl "180+1"]
[EndTime "9:42:16 PDT"]
[Termination "ImportedItalianMaple won by resignation"]

1. Nf3 {[%clk 0:03:00.9]} 1... Nf6 {[%clk 0:02:59.7]} 2. g3 {[%clk 0:03:01.1]}
2... g6 {[%clk 0:02:59.3]} 3. Bg2 {[%clk 0:03:01.6]} 3... Bg7 {[%clk 0:03:00.2]}
4. O-O {[%clk 0:03:02]} 4... O-O {[%clk 0:03:01.1]} 5. d4 {[%clk 0:03:02.5]}
5... d6 {[%clk 0:03:02]} 6. c4 {[%clk 0:03:02.8]} 6... Nbd7 {[%clk 0:03:02.9]}
7. Nc3 {[%clk 0:03:02.8]} 7... e5 {[%clk 0:03:03.5]} 8. e4 {[%clk 0:03:03.1]}
8... c6 {[%clk 0:03:00.1]} 9. h3 {[%clk 0:03:02.3]} 9... Qb6 {[%clk 0:03:00.5]}
10. c5 {[%clk 0:02:54.7]} 10... dxc5 {[%clk 0:03:00.6]} 11. dxe5 {[%clk
0:02:55.2]} 11... Ne8 {[%clk 0:03:01.5]} 12. e6 {[%clk 0:02:47.4]} 12... fxe6
{[%clk 0:03:01.5]} 13. Ng5 {[%clk 0:02:39.6]} 13... Ndf6 {[%clk 0:03:01.5]} 14.
e5 {[%clk 0:02:38.5]} 14... Nd5 {[%clk 0:03:02]} 15. f4 {[%clk 0:01:45.2]} 15...
c4+ {[%clk 0:02:53.5]} 16. Kh2 {[%clk 0:01:45.1]} 16... Nb4 {[%clk 0:02:39.1]}
17. Qe2 {[%clk 0:01:38.4]} 17... Nd3 {[%clk 0:02:39.3]} 18. b3 {[%clk
0:01:22.4]} 18... Nxc1 {[%clk 0:02:37.5]} 19. Rfxc1 {[%clk 0:01:21.6]} 19...
cxb3 {[%clk 0:02:38.4]} 20. Rab1 {[%clk 0:01:19.6]} 20... Nc7 {[%clk 0:02:36.9]}
21. Rxb3 {[%clk 0:01:19.2]} 21... Qa6 {[%clk 0:02:37.7]} 22. Qd2 {[%clk
0:01:05.3]} 22... Nd5 {[%clk 0:02:37.2]} 23. Nce4 {[%clk 0:01:02.8]} 23... h6
{[%clk 0:02:32.1]} 24. Nc5 {[%clk 0:01:02.7]} 24... hxg5 {[%clk 0:02:19.9]} 25.
Nxa6 {[%clk 0:01:02.5]} 25... bxa6 {[%clk 0:02:13.1]} 26. Rxc6 {[%clk
0:01:02.3]} 26... gxf4 {[%clk 0:02:13.2]} 27. Bxd5 {[%clk 0:00:55.4]} 27... exd5
{[%clk 0:02:13.6]} 28. Qxd5+ {[%clk 0:00:55.5]} 28... Kh7 {[%clk 0:02:14]} 29.
Rc7 {[%clk 0:00:45.2]} 29... fxg3+ {[%clk 0:02:07.8]} 30. Kxg3 {[%clk
0:00:45.5]} 30... Bf5 {[%clk 0:02:04.7]} 31. Rbb7 {[%clk 0:00:42.6]} 31... Rg8
{[%clk 0:02:05.2]} 32. Rxg7+ {[%clk 0:00:42.3]} 1-0

[Event "Early-Titled-Tuesday-Blitz-March-19-2024"]
[Site "Chess.com"]
[Date "2024.03.19"]
[Round "9"]
[White "js20000"]
[Black "wannabe2700"]
[Result "0-1"]
[WhiteElo "2783"]
[BlackElo "2640"]
[TimeControl "180+1"]
[EndTime "9:42:17 PDT"]
[Termination "wannabe2700 won by resignation"]

1. d4 {[%clk 0:02:57.3]} 1... f5 {[%clk 0:02:59.3]} 2. Nc3 {[%clk 0:02:54.4]}
2... Nf6 {[%clk 0:02:59.5]} 3. Bg5 {[%clk 0:02:53.5]} 3... d5 {[%clk 0:02:59.9]}
4. e3 {[%clk 0:02:50.2]} 4... e6 {[%clk 0:03:00]} 5. Nf3 {[%clk 0:02:50]} 5...
Be7 {[%clk 0:03:00.5]} 6. h3 {[%clk 0:02:43.4]} 6... Nbd7 {[%clk 0:03:00.1]} 7.
Bf4 {[%clk 0:02:39.9]} 7... O-O {[%clk 0:02:49.8]} 8. Nb5 {[%clk 0:02:38]} 8...
Ne8 {[%clk 0:02:40.9]} 9. c4 {[%clk 0:02:37.2]} 9... c6 {[%clk 0:02:31.2]} 10.
Nc3 {[%clk 0:02:37.1]} 10... g5 {[%clk 0:02:30.1]} 11. Bh2 {[%clk 0:02:36.3]}
11... Bd6 {[%clk 0:02:28.2]} 12. cxd5 {[%clk 0:02:24.6]} 12... exd5 {[%clk
0:02:23]} 13. Ne5 {[%clk 0:02:16.2]} 13... Nxe5 {[%clk 0:02:11.7]} 14. dxe5
{[%clk 0:02:17.1]} 14... Bc7 {[%clk 0:02:00.7]} 15. h4 {[%clk 0:02:12.2]} 15...
g4 {[%clk 0:01:53.7]} 16. Bf4 {[%clk 0:02:06.3]} 16... Ng7 {[%clk 0:01:53.2]}
17. f3 {[%clk 0:02:06.4]} 17... Qe7 {[%clk 0:01:52.1]} 18. fxg4 {[%clk 0:01:54]}
18... fxg4 {[%clk 0:01:53]} 19. Be2 {[%clk 0:01:53.9]} 19... Bxe5 {[%clk
0:01:52]} 20. Nxd5 {[%clk 0:01:53.6]} 20... Qd6 {[%clk 0:01:41.2]} 21. Nc3
{[%clk 0:01:24.3]} 21... Bxf4 {[%clk 0:01:40.7]} 22. exf4 {[%clk 0:01:24.3]}
22... Qxf4 {[%clk 0:01:41.6]} 23. Qd3 {[%clk 0:01:12]} 23... Qf2+ {[%clk
0:01:41.6]} 24. Kd2 {[%clk 0:01:09.4]} 24... Bf5 {[%clk 0:01:42.5]} 25. Qc4+
{[%clk 0:01:07.9]} 25... Be6 {[%clk 0:01:39]} 26. Ne4 {[%clk 0:01:03.4]} 26...
Qf4+ {[%clk 0:01:34.4]} 0-1

[Event "Early-Titled-Tuesday-Blitz-March-19-2024"]
[Site "Chess.com"]
[Date "2024.03.19"]
[Round "9"]
[White "picturesquecheck"]
[Black "ajedrezsinlimites"]
[Result "0-1"]
[WhiteElo "2438"]
[BlackElo "2601"]
[TimeControl "180+1"]
[EndTime "9:42:30 PDT"]
[Termination "ajedrezsinlimites won by resignation"]

1. e4 {[%clk 0:03:00.9]} 1... c6 {[%clk 0:02:11.5]} 2. d4 {[%clk 0:02:59.6]}
2... d5 {[%clk 0:02:11.7]} 3. exd5 {[%clk 0:03:00.1]} 3... cxd5 {[%clk
0:02:12.6]} 4. Bd3 {[%clk 0:03:00.3]} 4... Nf6 {[%clk 0:02:12.7]} 5. c3 {[%clk
0:03:00.8]} 5... Nc6 {[%clk 0:02:13.2]} 6. Nf3 {[%clk 0:03:01.1]} 6... Bg4
{[%clk 0:02:13.2]} 7. O-O {[%clk 0:03:01.4]} 7... e6 {[%clk 0:02:13.8]} 8. h3
{[%clk 0:03:01.9]} 8... Bh5 {[%clk 0:02:13.4]} 9. Re1 {[%clk 0:03:02.4]} 9...
Bd6 {[%clk 0:02:13.5]} 10. Nbd2 {[%clk 0:03:02.7]} 10... O-O {[%clk 0:02:13.4]}
11. Nf1 {[%clk 0:03:03.1]} 11... Re8 {[%clk 0:02:13.2]} 12. Bg5 {[%clk
0:03:02.5]} 12... Rc8 {[%clk 0:02:08.3]} 13. Bh4 {[%clk 0:02:55.7]} 13... Qc7
{[%clk 0:02:01.4]} 14. Bg3 {[%clk 0:02:55.4]} 14... a6 {[%clk 0:01:50.2]} 15.
Bxd6 {[%clk 0:02:53.2]} 15... Qxd6 {[%clk 0:01:51.1]} 16. Ng3 {[%clk 0:02:53.3]}
16... Bg6 {[%clk 0:01:47.3]} 17. Ne5 {[%clk 0:02:52.7]} 17... Qc7 {[%clk
0:01:46.1]} 18. f4 {[%clk 0:02:41.9]} 18... Bxd3 {[%clk 0:01:44.9]} 19. Qxd3
{[%clk 0:02:36.5]} 19... b5 {[%clk 0:01:45.5]} 20. a3 {[%clk 0:02:35.6]} 20...
Rb8 {[%clk 0:01:36.5]} 21. f5 {[%clk 0:02:30.8]} 21... exf5 {[%clk 0:01:36.4]}
22. Nxc6 {[%clk 0:02:25.4]} 22... Qxc6 {[%clk 0:01:36.2]} 23. Nxf5 {[%clk
0:02:25]} 23... Ne4 {[%clk 0:01:32.8]} 24. Qf3 {[%clk 0:02:18.7]} 24... Qf6
{[%clk 0:01:23.3]} 25. Qg4 {[%clk 0:02:07.2]} 25... Qg6 {[%clk 0:01:18.2]} 26.
Ne3 {[%clk 0:02:04.7]} 26... Qxg4 {[%clk 0:01:16.5]} 27. Nxg4 {[%clk 0:02:04.2]}
27... a5 {[%clk 0:01:16.2]} 28. Ne3 {[%clk 0:02:00.8]} 28... Rbd8 {[%clk
0:01:15.2]} 29. Nc2 {[%clk 0:01:56.4]} 29... g6 {[%clk 0:01:14.9]} 30. Re2
{[%clk 0:01:54.9]} 30... f5 {[%clk 0:01:15]} 31. Rae1 {[%clk 0:01:53.2]} 31...
Rb8 {[%clk 0:01:14.1]} 32. Kh2 {[%clk 0:01:43.4]} 32... Kg7 {[%clk 0:01:12.4]}
33. g4 {[%clk 0:01:43.5]} 33... f4 {[%clk 0:01:10.3]} 34. Rf1 {[%clk 0:01:41]}
34... g5 {[%clk 0:01:10.1]} 35. h4 {[%clk 0:01:37.5]} 35... Ng3 {[%clk
0:01:09.9]} 36. Rxe8 {[%clk 0:01:33.8]} 36... Nxf1+ {[%clk 0:01:10.4]} 37. Kg1
{[%clk 0:01:33]} 37... Rxe8 {[%clk 0:01:10.5]} 0-1

[Event "Early-Titled-Tuesday-Blitz-March-19-2024"]
[Site "Chess.com"]
[Date "2024.03.19"]
[Round "9"]
[White "mary-sanna"]
[Black "NtcPou"]
[Result "1-0"]
[WhiteElo "2201"]
[BlackElo "1972"]
[TimeControl "180+1"]
[EndTime "9:42:48 PDT"]
[Termination "mary-sanna won by resignation"]

1. d4 {[%clk 0:02:30.1]} 1... d5 {[%clk 0:02:54.8]} 2. c4 {[%clk 0:02:30.2]}
2... c6 {[%clk 0:02:54.8]} 3. Nf3 {[%clk 0:02:30.2]} 3... Nf6 {[%clk 0:02:55.1]}
4. g3 {[%clk 0:02:30.5]} 4... a6 {[%clk 0:02:54.3]} 5. Nbd2 {[%clk 0:02:23.8]}
5... b5 {[%clk 0:02:53.8]} 6. b3 {[%clk 0:02:21.1]} 6... g6 {[%clk 0:02:44.1]}
7. Bg2 {[%clk 0:02:20.8]} 7... Bg7 {[%clk 0:02:44.3]} 8. O-O {[%clk 0:02:20.6]}
8... O-O {[%clk 0:02:44.4]} 9. Bb2 {[%clk 0:02:16.6]} 9... Nbd7 {[%clk
0:02:40.9]} 10. Rc1 {[%clk 0:02:15.9]} 10... e6 {[%clk 0:02:39.3]} 11. Re1
{[%clk 0:02:06.8]} 11... Ne4 {[%clk 0:02:37.7]} 12. Qc2 {[%clk 0:02:00.2]} 12...
Nef6 {[%clk 0:02:33.6]} 13. e4 {[%clk 0:01:59]} 13... Bb7 {[%clk 0:02:32.5]} 14.
cxd5 {[%clk 0:01:49]} 14... cxd5 {[%clk 0:02:28.3]} 15. e5 {[%clk 0:01:45.9]}
15... Ne4 {[%clk 0:02:26.5]} 16. Nxe4 {[%clk 0:01:42.8]} 16... dxe4 {[%clk
0:02:26.6]} 17. Nd2 {[%clk 0:01:42.8]} 17... Rc8 {[%clk 0:02:26]} 18. Qb1 {[%clk
0:01:42.3]} 18... Rxc1 {[%clk 0:02:25.5]} 19. Rxc1 {[%clk 0:01:41.1]} 19... Bh6
{[%clk 0:02:22.2]} 20. Rd1 {[%clk 0:01:34.4]} 20... Bxd2 {[%clk 0:02:20.3]} 21.
Rxd2 {[%clk 0:01:34.4]} 21... Nb6 {[%clk 0:02:20.6]} 22. Bxe4 {[%clk 0:01:32.9]}
22... Bxe4 {[%clk 0:02:10.1]} 23. Qxe4 {[%clk 0:01:33.8]} 23... Nd5 {[%clk
0:02:10.5]} 24. Rc2 {[%clk 0:01:30.3]} 24... Qd7 {[%clk 0:02:08.6]} 25. a3
{[%clk 0:01:26.1]} 25... Rc8 {[%clk 0:02:08.9]} 26. Kg2 {[%clk 0:01:24.5]} 26...
h5 {[%clk 0:02:04.6]} 27. h4 {[%clk 0:01:23.7]} 27... Rc6 {[%clk 0:02:02.5]} 28.
Bc1 {[%clk 0:01:04.1]} 28... Qc7 {[%clk 0:01:58]} 29. Rxc6 {[%clk 0:01:03.3]}
29... Qxc6 {[%clk 0:01:58.9]} 30. Bh6 {[%clk 0:01:03.8]} 30... Kh7 {[%clk
0:01:25.8]} 31. Bd2 {[%clk 0:00:57]} 31... Qc2 {[%clk 0:01:24]} 32. Qxc2 {[%clk
0:00:56.5]} 1-0

[Event "Early-Titled-Tuesday-Blitz-March-19-2024"]
[Site "Chess.com"]
[Date "2024.03.19"]
[Round "9"]
[White "ploxoi"]
[Black "bazar-wokzal"]
[Result "0-1"]
[WhiteElo "2438"]
[BlackElo "2569"]
[TimeControl "180+1"]
[EndTime "9:42:56 PDT"]
[Termination "bazar-wokzal won by resignation"]

1. d4 {[%clk 0:02:57.2]} 1... Nf6 {[%clk 0:02:59.6]} 2. c4 {[%clk 0:02:54.3]}
2... Nc6 {[%clk 0:02:59.4]} 3. Nf3 {[%clk 0:02:52.4]} 3... e6 {[%clk 0:02:59.1]}
4. Nc3 {[%clk 0:02:52.1]} 4... Bb4 {[%clk 0:02:58.6]} 5. Qc2 {[%clk 0:02:51.8]}
5... d6 {[%clk 0:02:54.7]} 6. g3 {[%clk 0:02:50.9]} 6... e5 {[%clk 0:02:54.3]}
7. d5 {[%clk 0:02:43.9]} 7... Bxc3+ {[%clk 0:02:54.5]} 8. Qxc3 {[%clk 0:02:44]}
8... Ne7 {[%clk 0:02:54.8]} 9. Bg2 {[%clk 0:02:43.4]} 9... O-O {[%clk 0:02:54]}
10. Bg5 {[%clk 0:02:38.8]} 10... Ng6 {[%clk 0:02:51.2]} 11. h4 {[%clk
0:02:38.3]} 11... h6 {[%clk 0:02:51.2]} 12. Bd2 {[%clk 0:02:36.6]} 12... c6
{[%clk 0:02:50]} 13. dxc6 {[%clk 0:02:18.1]} 13... bxc6 {[%clk 0:02:49.9]} 14.
O-O {[%clk 0:02:18.6]} 14... Qe7 {[%clk 0:02:46.3]} 15. Rad1 {[%clk 0:02:17.7]}
15... d5 {[%clk 0:02:46.1]} 16. Qb4 {[%clk 0:01:58.7]} 16... c5 {[%clk
0:02:40.5]} 17. Qa3 {[%clk 0:01:57]} 17... e4 {[%clk 0:02:26.9]} 18. Ne1 {[%clk
0:01:49.7]} 18... d4 {[%clk 0:02:26.4]} 19. Nc2 {[%clk 0:01:42.6]} 19... Bf5
{[%clk 0:02:20.4]} 20. e3 {[%clk 0:01:37.5]} 20... d3 {[%clk 0:02:08.9]} 21. Na1
{[%clk 0:01:21]} 21... Ne5 {[%clk 0:02:08.6]} 22. Rc1 {[%clk 0:01:21.1]} 22...
Bg4 {[%clk 0:02:06.9]} 23. b4 {[%clk 0:01:12.6]} 23... Be2 {[%clk 0:02:00.7]}
24. bxc5 {[%clk 0:01:07.3]} 24... Nf3+ {[%clk 0:01:54.6]} 25. Bxf3 {[%clk
0:01:05.3]} 25... exf3 {[%clk 0:01:55.5]} 26. Rfe1 {[%clk 0:00:26.9]} 26... Qe6
{[%clk 0:01:53.4]} 27. Kh2 {[%clk 0:00:27.2]} 27... Ne4 {[%clk 0:01:51.5]} 28.
Nb3 {[%clk 0:00:25.1]} 28... Nxf2 {[%clk 0:01:50.4]} 29. Kg1 {[%clk 0:00:20.1]}
29... Qh3 {[%clk 0:01:49.7]} 0-1

[Event "Early-Titled-Tuesday-Blitz-March-19-2024"]
[Site "Chess.com"]
[Date "2024.03.19"]
[Round "9"]
[White "javirec"]
[Black "gorgeous1083"]
[Result "1-0"]
[WhiteElo "2251"]
[BlackElo "2063"]
[TimeControl "180+1"]
[EndTime "9:42:57 PDT"]
[Termination "javirec won by resignation"]

1. e4 {[%clk 0:02:46.2]} 1... e6 {[%clk 0:02:59.8]} 2. d4 {[%clk 0:02:38.5]}
2... d5 {[%clk 0:02:59.9]} 3. Nc3 {[%clk 0:02:38.5]} 3... Bb4 {[%clk 0:02:58.6]}
4. e5 {[%clk 0:02:34.5]} 4... c5 {[%clk 0:02:58.9]} 5. Qg4 {[%clk 0:02:34]} 5...
Ne7 {[%clk 0:02:37.8]} 6. dxc5 {[%clk 0:02:28.9]} 6... Bxc3+ {[%clk 0:02:31.6]}
7. bxc3 {[%clk 0:02:28.5]} 7... Kf8 {[%clk 0:02:26.2]} 8. Nf3 {[%clk 0:02:22.4]}
8... Nbc6 {[%clk 0:02:26.4]} 9. h4 {[%clk 0:02:21.3]} 9... Qa5 {[%clk
0:02:24.5]} 10. Bd2 {[%clk 0:02:20.9]} 10... Qxc5 {[%clk 0:02:19.7]} 11. h5
{[%clk 0:02:20.7]} 11... h6 {[%clk 0:02:14.4]} 12. Bd3 {[%clk 0:02:17.6]} 12...
Na5 {[%clk 0:01:52.5]} 13. Rh3 {[%clk 0:02:02.5]} 13... Nc4 {[%clk 0:01:29.2]}
14. Rg3 {[%clk 0:01:58]} 14... g5 {[%clk 0:01:19.9]} 15. hxg6 {[%clk 0:01:47.5]}
15... fxg6 {[%clk 0:01:18.6]} 16. Bxg6 {[%clk 0:01:33.4]} 16... Nxg6 {[%clk
0:00:53.8]} 17. Qxg6 {[%clk 0:01:31.3]} 17... Qe7 {[%clk 0:00:34]} 18. Bxh6+
{[%clk 0:01:28]} 18... Rxh6 {[%clk 0:00:30.3]} 19. Qxh6+ {[%clk 0:01:27.9]}
19... Ke8 {[%clk 0:00:25.8]} 20. Rg8+ {[%clk 0:01:24.1]} 1-0

[Event "Early-Titled-Tuesday-Blitz-March-19-2024"]
[Site "Chess.com"]
[Date "2024.03.19"]
[Round "9"]
[White "AccioChess"]
[Black "Leo_C"]
[Result "1-0"]
[WhiteElo "2487"]
[BlackElo "2633"]
[TimeControl "180+1"]
[EndTime "9:43:02 PDT"]
[Termination "AccioChess won by resignation"]

1. e4 {[%clk 0:03:00.9]} 1... c5 {[%clk 0:02:59.5]} 2. Nf3 {[%clk 0:03:00.2]}
2... d6 {[%clk 0:02:59.8]} 3. d4 {[%clk 0:03:00.4]} 3... cxd4 {[%clk 0:03:00.7]}
4. Nxd4 {[%clk 0:03:00.8]} 4... Nf6 {[%clk 0:03:01.1]} 5. Nc3 {[%clk 0:03:01.4]}
5... a6 {[%clk 0:03:01.6]} 6. Be2 {[%clk 0:03:01]} 6... e5 {[%clk 0:03:00.2]} 7.
Nb3 {[%clk 0:03:00.8]} 7... Be7 {[%clk 0:02:59.9]} 8. Qd3 {[%clk 0:03:00.5]}
8... Be6 {[%clk 0:02:40.5]} 9. Nd5 {[%clk 0:03:00.2]} 9... Bxd5 {[%clk 0:02:39]}
10. exd5 {[%clk 0:03:01.1]} 10... Nbd7 {[%clk 0:02:38.7]} 11. Bd2 {[%clk
0:03:01.3]} 11... Qc7 {[%clk 0:02:28.7]} 12. c4 {[%clk 0:02:54.9]} 12... a5
{[%clk 0:02:25]} 13. Bc3 {[%clk 0:02:53.3]} 13... a4 {[%clk 0:02:23.2]} 14. Nd2
{[%clk 0:02:53.3]} 14... Nc5 {[%clk 0:02:23.3]} 15. Qg3 {[%clk 0:02:45.5]} 15...
O-O {[%clk 0:02:06.8]} 16. Qh3 {[%clk 0:02:42.1]} 16... g6 {[%clk 0:01:43.5]}
17. O-O {[%clk 0:02:38.2]} 17... Nfe4 {[%clk 0:01:40.2]} 18. Nxe4 {[%clk
0:02:37.5]} 18... Nxe4 {[%clk 0:01:41.1]} 19. Be1 {[%clk 0:02:32.4]} 19... Qb6
{[%clk 0:01:39]} 20. Qa3 {[%clk 0:02:28.2]} 20... f5 {[%clk 0:01:29.9]} 21. Kh1
{[%clk 0:02:27.3]} 21... Bh4 {[%clk 0:01:24.2]} 22. g3 {[%clk 0:02:24.5]} 22...
Bf6 {[%clk 0:01:23.1]} 23. f3 {[%clk 0:02:24.3]} 23... Nc5 {[%clk 0:01:22.5]}
24. Bf2 {[%clk 0:02:20.1]} 24... e4 {[%clk 0:01:18.3]} 25. Rab1 {[%clk
0:02:18.6]} 25... exf3 {[%clk 0:01:16]} 26. Bxf3 {[%clk 0:02:18.3]} 26... Rfe8
{[%clk 0:01:15.5]} 27. Kg2 {[%clk 0:02:09.7]} 27... Qa5 {[%clk 0:01:14.9]} 28.
Rfd1 {[%clk 0:02:01.1]} 28... Ra6 {[%clk 0:00:52.4]} 29. Re1 {[%clk 0:01:44.2]}
29... Raa8 {[%clk 0:00:44.7]} 30. Rxe8+ {[%clk 0:01:37.9]} 30... Rxe8 {[%clk
0:00:45.6]} 31. b4 {[%clk 0:01:36.4]} 31... Qb6 {[%clk 0:00:28.4]} 32. Rd1
{[%clk 0:01:33.4]} 1-0

[Event "Early-Titled-Tuesday-Blitz-March-19-2024"]
[Site "Chess.com"]
[Date "2024.03.19"]
[Round "9"]
[White "Manukyan_Artak"]
[Black "IMRosen"]
[Result "1-0"]
[WhiteElo "2491"]
[BlackElo "2643"]
[TimeControl "180+1"]
[EndTime "9:43:03 PDT"]
[Termination "Manukyan_Artak won by checkmate"]

1. e4 {[%clk 0:02:53.8]} 1... c5 {[%clk 0:02:59.8]} 2. Nf3 {[%clk 0:02:49.2]}
2... e6 {[%clk 0:03:00]} 3. c3 {[%clk 0:02:49]} 3... d5 {[%clk 0:03:00.2]} 4. e5
{[%clk 0:02:48.9]} 4... d4 {[%clk 0:03:00.2]} 5. cxd4 {[%clk 0:02:48.3]} 5...
cxd4 {[%clk 0:03:01.1]} 6. Bb5+ {[%clk 0:02:48.5]} 6... Bd7 {[%clk 0:02:53.3]}
7. Nxd4 {[%clk 0:02:46.3]} 7... Bxb5 {[%clk 0:02:36.9]} 8. Nxb5 {[%clk
0:02:47.2]} 8... Nc6 {[%clk 0:02:36.1]} 9. O-O {[%clk 0:02:45.9]} 9... a6 {[%clk
0:02:36.3]} 10. N5c3 {[%clk 0:02:43.7]} 10... Bc5 {[%clk 0:02:29]} 11. Ne4
{[%clk 0:02:37.4]} 11... Be7 {[%clk 0:02:29]} 12. Nbc3 {[%clk 0:02:36.8]} 12...
Nxe5 {[%clk 0:02:27.9]} 13. d4 {[%clk 0:02:36.8]} 13... Ng6 {[%clk 0:02:03.5]}
14. d5 {[%clk 0:02:34.8]} 14... f5 {[%clk 0:02:00]} 15. Ng3 {[%clk 0:02:30.5]}
15... Qd7 {[%clk 0:01:35.3]} 16. dxe6 {[%clk 0:02:26.6]} 16... Qxe6 {[%clk
0:01:35.7]} 17. Re1 {[%clk 0:02:26]} 17... Qf7 {[%clk 0:01:35.8]} 18. Nd5 {[%clk
0:02:16.8]} 18... Kf8 {[%clk 0:01:29.3]} 19. Nc7 {[%clk 0:02:11.3]} 19... Rc8
{[%clk 0:01:16.3]} 20. Ne6+ {[%clk 0:02:05.9]} 20... Ke8 {[%clk 0:01:16.9]} 21.
Nxf5 {[%clk 0:02:04.7]} 21... Qf6 {[%clk 0:01:00]} 22. Bg5 {[%clk 0:01:52.6]}
22... Qxb2 {[%clk 0:01:00]} 23. Nexg7+ {[%clk 0:01:44.2]} 23... Kf8 {[%clk
0:00:58.1]} 24. Qd7 {[%clk 0:01:29.7]} 24... Rb8 {[%clk 0:00:32.7]} 25. Ne6+
{[%clk 0:01:13.6]} 25... Kf7 {[%clk 0:00:32.3]} 26. Nd6# {[%clk 0:01:13.8]} 1-0